[Event "Titled Tuesday Blitz October 18 Late 2022"]
[White "Kaganskiy, Gleb"]
[Black "Pham, Khoi"]
[WhiteFideId "4132025"]
[BlackFideId "1054988"]
[WhiteElo "2165"]
[BlackElo "2452"]
[Result "0-1"]
[Round "04"]
[TimeControl "180+1"]
[Date "2022.10.19"]
[WhiteClock "0:00:50"]
[BlackClock "0:01:33"]

1. e4 {[%clk 0:02:56]}  e6 {[%clk 0:02:58]} 2. d4 {[%clk 0:02:56]}  d5 {[%clk 0:02:59]} 3. Nd2 {[%clk 0:02:56]}  c5 {[%clk 0:02:58]} 4. exd5 {[%clk 0:02:56]}  Qxd5 {[%clk 0:02:59]} 5. Ngf3 {[%clk 0:02:54]}  cxd4 {[%clk 0:02:58]} 6. Bc4 {[%clk 0:02:54]}  Qd6 {[%clk 0:02:58]} 7. O-O {[%clk 0:02:49]}  Nf6 {[%clk 0:02:56]} 8. Re1 {[%clk 0:02:38]}  Nc6 {[%clk 0:02:55]} 9. Ne4 {[%clk 0:02:38]}  Nxe4 {[%clk 0:02:52]} 10. Rxe4 {[%clk 0:02:39]}  Be7 {[%clk 0:02:51]} 11. Nxd4 {[%clk 0:02:38]}  O-O {[%clk 0:02:45]} 12. Bf4 {[%clk 0:02:32]}  Qc5 {[%clk 0:02:39]} 13. Nb3 {[%clk 0:02:14]}  Qb6 {[%clk 0:02:36]} 14. Qh5 {[%clk 0:02:01]}  g6 {[%clk 0:02:24]} 15. Qh6 {[%clk 0:01:55]}  Rd8 {[%clk 0:02:25]} 16. h4 {[%clk 0:01:45]}  Bf8 {[%clk 0:01:57]} 17. Qg5 {[%clk 0:01:44]}  Bg7 {[%clk 0:01:58]} 18. Be3 {[%clk 0:01:31]}  Qc7 {[%clk 0:01:56]} 19. Bf4 {[%clk 0:01:31]}  Qb6 {[%clk 0:01:53]} 20. Be3 {[%clk 0:01:30]}  Qc7 {[%clk 0:01:54]} 21. Bf4 {[%clk 0:01:30]}  e5 {[%clk 0:01:50]} 22. Bd2 {[%clk 0:01:02]}  Bf5 {[%clk 0:01:45]} 23. Re2 {[%clk 0:00:55]}  Nd4 {[%clk 0:01:42]} 24. Nxd4 {[%clk 0:00:53]}  Qxc4 {[%clk 0:01:42]} 25. Nxf5 {[%clk 0:00:52]}  Qxe2 {[%clk 0:01:41]} 26. Nxg7 {[%clk 0:00:50]}  Qxd2 {[%clk 0:01:33]} 0-1


[Site "https://www.chess.com"]

[Event "Titled Tuesday Blitz October 18 Late 2022"]
[White "Kanakaris, Georgios"]
[Black "Tsyhanchuk, Stanislav"]
[WhiteFideId "4209460"]
[BlackFideId "13505130"]
[WhiteElo "2291"]
[BlackElo "2173"]
[Result "1-0"]
[Round "04"]
[TimeControl "180+1"]
[Date "2022.10.19"]
[WhiteClock "0:00:18"]
[BlackClock "0:00:07"]

1. d4 {[%clk 0:03:00]}  Nf6 {[%clk 0:02:37]} 2. Nf3 {[%clk 0:03:00]}  e6 {[%clk 0:02:33]} 3. g3 {[%clk 0:03:01]}  c5 {[%clk 0:02:32]} 4. Bg2 {[%clk 0:03:00]}  b5 {[%clk 0:02:30]} 5. O-O {[%clk 0:02:58]}  Bb7 {[%clk 0:02:30]} 6. a4 {[%clk 0:02:58]}  b4 {[%clk 0:02:29]} 7. Bg5 {[%clk 0:02:58]}  Be7 {[%clk 0:02:21]} 8. Nbd2 {[%clk 0:02:47]}  cxd4 {[%clk 0:02:17]} 9. Nxd4 {[%clk 0:02:44]}  Bxg2 {[%clk 0:02:16]} 10. Kxg2 {[%clk 0:02:45]}  O-O {[%clk 0:02:16]} 11. e4 {[%clk 0:02:36]}  d5 {[%clk 0:02:05]} 12. exd5 {[%clk 0:02:04]}  Nxd5 {[%clk 0:02:06]} 13. Bxe7 {[%clk 0:02:02]}  Qxe7 {[%clk 0:01:45]} 14. Qf3 {[%clk 0:02:03]}  Nd7 {[%clk 0:01:44]} 15. Rfe1 {[%clk 0:01:51]}  Qc5 {[%clk 0:01:30]} 16. N2b3 {[%clk 0:01:47]}  Qc7 {[%clk 0:01:28]} 17. h4 {[%clk 0:01:33]}  Rac8 {[%clk 0:01:26]} 18. h5 {[%clk 0:01:31]}  h6 {[%clk 0:01:27]} 19. a5 {[%clk 0:01:21]}  Nc5 {[%clk 0:01:22]} 20. Re2 {[%clk 0:01:08]}  Nxb3 {[%clk 0:01:19]} 21. Nxb3 {[%clk 0:01:09]}  Rfd8 {[%clk 0:01:13]} 22. Rh1 {[%clk 0:01:02]}  Qe7 {[%clk 0:00:53]} 23. Rh4 {[%clk 0:00:57]}  Rc6 {[%clk 0:00:28]} 24. Rd4 {[%clk 0:00:49]}  Qc7 {[%clk 0:00:26]} 25. Qd3 {[%clk 0:00:35]}  Rc8 {[%clk 0:00:24]} 26. Rg4 {[%clk 0:00:22]}  Rxc2 {[%clk 0:00:22]} 27. Qd4 {[%clk 0:00:20]}  f5 {[%clk 0:00:12]} 28. Rxc2 {[%clk 0:00:19]}  fxg4 {[%clk 0:00:10]} 29. Rxc7 {[%clk 0:00:18]}  Rxc7 {[%clk 0:00:11]} 30. Qe4 {[%clk 0:00:18]}  Kf7 {[%clk 0:00:10]} 31. Qg6+ {[%clk 0:00:18]}  Ke7 {[%clk 0:00:08]} 32. Nd4 {[%clk 0:00:17]}  Rc8 {[%clk 0:00:02]} 33. Qxe6+ {[%clk 0:00:17]}  Kd8 {[%clk 0:00:02]} 34. Qxd5+ {[%clk 0:00:18]}  Kc7 {[%clk 0:00:02]} 35. Qc5+ {[%clk 0:00:17]}  Kb7 {[%clk 0:00:03]} 36. a6+ {[%clk 0:00:15]}  Kb8 {[%clk 0:00:04]} 37. Nc6+ {[%clk 0:00:15]}  Kc7 {[%clk 0:00:05]} 38. Ne7+ {[%clk 0:00:16]}  Kd7 {[%clk 0:00:04]} 39. Nxc8 {[%clk 0:00:16]}  g5 {[%clk 0:00:03]} 40. Nxa7 {[%clk 0:00:16]}  b3 {[%clk 0:00:04]} 41. Nb5 {[%clk 0:00:16]}  Ke6 {[%clk 0:00:04]} 42. a7 {[%clk 0:00:17]}  Kd7 {[%clk 0:00:04]} 43. a8=Q {[%clk 0:00:17]}  Ke6 {[%clk 0:00:05]} 44. Qad5+ {[%clk 0:00:17]}  Kf6 {[%clk 0:00:06]} 45. Qcd6+ {[%clk 0:00:17]}  Kg7 {[%clk 0:00:06]} 46. Q5e5+ {[%clk 0:00:17]}  Kh7 {[%clk 0:00:06]} 47. Qee7+ {[%clk 0:00:17]}  Kg8 {[%clk 0:00:07]} 48. Qdd8# {[%clk 0:00:18]} 1-0


[Site "https://www.chess.com"]

[Event "Titled Tuesday Blitz October 18 Late 2022"]
[White "Kanter, Eduard"]
[Black "Melikyan, Gnel"]
[WhiteFideId "4103963"]
[BlackFideId "54109990"]
[WhiteElo "2267"]
[BlackElo "2138"]
[Result "1/2-1/2"]
[Round "04"]
[TimeControl "180+1"]
[Date "2022.10.19"]
[WhiteClock "0:00:27"]
[BlackClock "0:01:22"]

1. d4 {[%clk 0:03:00]}  Nf6 {[%clk 0:02:56]} 2. c4 {[%clk 0:03:01]}  g6 {[%clk 0:02:57]} 3. Nc3 {[%clk 0:03:00]}  Bg7 {[%clk 0:02:58]} 4. e4 {[%clk 0:03:01]}  d6 {[%clk 0:02:58]} 5. Be2 {[%clk 0:03:01]}  O-O {[%clk 0:02:59]} 6. Nf3 {[%clk 0:03:01]}  e5 {[%clk 0:02:59]} 7. Be3 {[%clk 0:03:00]}  Ng4 {[%clk 0:02:59]} 8. Bg5 {[%clk 0:03:00]}  f6 {[%clk 0:02:59]} 9. Bh4 {[%clk 0:03:00]}  g5 {[%clk 0:02:58]} 10. Bg3 {[%clk 0:03:00]}  Nc6 {[%clk 0:02:57]} 11. d5 {[%clk 0:02:57]}  Ne7 {[%clk 0:02:56]} 12. Nxg5 {[%clk 0:02:56]}  Nxf2 {[%clk 0:02:54]} 13. Bxf2 {[%clk 0:02:56]}  fxg5 {[%clk 0:02:54]} 14. O-O {[%clk 0:02:50]}  Ng6 {[%clk 0:02:46]} 15. Bg4 {[%clk 0:02:49]}  Bxg4 {[%clk 0:02:39]} 16. Qxg4 {[%clk 0:02:48]}  Qe7 {[%clk 0:02:40]} 17. Be3 {[%clk 0:02:44]}  Rf4 {[%clk 0:02:36]} 18. Qe2 {[%clk 0:02:17]}  b6 {[%clk 0:02:30]} 19. g3 {[%clk 0:02:13]}  Rxf1+ {[%clk 0:02:27]} 20. Rxf1 {[%clk 0:02:14]}  h6 {[%clk 0:02:24]} 21. Qg4 {[%clk 0:02:07]}  Rf8 {[%clk 0:02:21]} 22. Rxf8+ {[%clk 0:01:54]}  Nxf8 {[%clk 0:02:13]} 23. Qf5 {[%clk 0:01:46]}  a6 {[%clk 0:02:12]} 24. Kg2 {[%clk 0:01:45]}  Nd7 {[%clk 0:02:11]} 25. Qe6+ {[%clk 0:01:16]}  Kf8 {[%clk 0:02:03]} 26. Qxe7+ {[%clk 0:01:10]}  Kxe7 {[%clk 0:02:04]} 27. Kf3 {[%clk 0:01:07]}  Bf6 {[%clk 0:01:56]} 28. Kg4 {[%clk 0:01:06]}  Kf7 {[%clk 0:01:57]} 29. h4 {[%clk 0:01:00]}  Kg6 {[%clk 0:01:54]} 30. h5+ {[%clk 0:00:59]}  Kf7 {[%clk 0:01:53]} 31. b4 {[%clk 0:00:57]}  Bd8 {[%clk 0:01:52]} 32. Kf3 {[%clk 0:00:50]}  Nf6 {[%clk 0:01:39]} 33. g4 {[%clk 0:00:49]}  Nd7 {[%clk 0:01:37]} 34. Ne2 {[%clk 0:00:50]}  Be7 {[%clk 0:01:28]} 35. Ng3 {[%clk 0:00:48]}  Bf8 {[%clk 0:01:29]} 36. Ne2 {[%clk 0:00:42]}  Ke8 {[%clk 0:01:29]} 37. Nc1 {[%clk 0:00:42]}  Kd8 {[%clk 0:01:29]} 38. Nb3 {[%clk 0:00:42]}  Kc8 {[%clk 0:01:30]} 39. a4 {[%clk 0:00:40]}  Be7 {[%clk 0:01:24]} 40. b5 {[%clk 0:00:30]}  a5 {[%clk 0:01:24]} 41. Nd2 {[%clk 0:00:27]}  Bf8 {[%clk 0:01:22]} 1/2-1/2


[Site "https://www.chess.com"]

[Event "Titled Tuesday Blitz October 18 Late 2022"]
[White "Khumalo, Keith"]
[Black "Alfaro, William"]
[WhiteFideId "14319470"]
[BlackFideId "6100457"]
[WhiteElo "2056"]
[BlackElo "2096"]
[Result "1-0"]
[Round "04"]
[TimeControl "180+1"]
[Date "2022.10.19"]
[WhiteClock "0:01:08"]
[BlackClock "0:00:31"]

1. d4 {[%clk 0:02:55]}  Nf6 {[%clk 0:02:58]} 2. c4 {[%clk 0:02:56]}  g6 {[%clk 0:02:58]} 3. Nc3 {[%clk 0:02:55]}  Bg7 {[%clk 0:02:59]} 4. e4 {[%clk 0:02:54]}  d6 {[%clk 0:02:59]} 5. Bd3 {[%clk 0:02:55]}  O-O {[%clk 0:03:00]} 6. Nge2 {[%clk 0:02:56]}  e5 {[%clk 0:02:59]} 7. d5 {[%clk 0:02:56]}  a5 {[%clk 0:02:59]} 8. O-O {[%clk 0:02:57]}  Na6 {[%clk 0:03:00]} 9. a3 {[%clk 0:02:58]}  Nc5 {[%clk 0:02:58]} 10. Bc2 {[%clk 0:02:59]}  Bd7 {[%clk 0:02:56]} 11. Rb1 {[%clk 0:02:59]}  a4 {[%clk 0:02:56]} 12. f3 {[%clk 0:03:00]}  Nh5 {[%clk 0:02:54]} 13. Be3 {[%clk 0:02:59]}  Qe8 {[%clk 0:02:50]} 14. Qd2 {[%clk 0:02:59]}  f5 {[%clk 0:02:49]} 15. exf5 {[%clk 0:03:00]}  gxf5 {[%clk 0:02:49]} 16. f4 {[%clk 0:03:00]}  exf4 {[%clk 0:02:35]} 17. Nxf4 {[%clk 0:02:59]}  Nf6 {[%clk 0:02:33]} 18. h3 {[%clk 0:02:58]}  Nce4 {[%clk 0:02:31]} 19. Nxe4 {[%clk 0:02:58]}  Nxe4 {[%clk 0:02:32]} 20. Qd3 {[%clk 0:02:52]}  Qf7 {[%clk 0:02:22]} 21. Bd4 {[%clk 0:02:45]}  Rae8 {[%clk 0:02:18]} 22. Rbe1 {[%clk 0:02:43]}  b6 {[%clk 0:02:11]} 23. Re3 {[%clk 0:02:34]}  Bxd4 {[%clk 0:02:09]} 24. Qxd4 {[%clk 0:02:34]}  Qg7 {[%clk 0:02:10]} 25. Qxg7+ {[%clk 0:02:33]}  Kxg7 {[%clk 0:02:10]} 26. Bxe4 {[%clk 0:02:32]}  Rxe4 {[%clk 0:02:07]} 27. Rxe4 {[%clk 0:02:32]}  fxe4 {[%clk 0:02:08]} 28. g3 {[%clk 0:02:33]}  Rb8 {[%clk 0:01:56]} 29. Rc1 {[%clk 0:02:29]}  Kf6 {[%clk 0:01:53]} 30. Kf2 {[%clk 0:02:29]}  Ke5 {[%clk 0:01:53]} 31. Ke3 {[%clk 0:02:30]}  Rg8 {[%clk 0:01:51]} 32. g4 {[%clk 0:02:29]}  Rf8 {[%clk 0:01:50]} 33. Rf1 {[%clk 0:02:28]}  Rb8 {[%clk 0:01:49]} 34. Rc1 {[%clk 0:02:14]}  b5 {[%clk 0:01:47]} 35. c5 {[%clk 0:02:13]}  b4 {[%clk 0:01:45]} 36. cxd6 {[%clk 0:02:10]}  cxd6 {[%clk 0:01:45]} 37. Rc4 {[%clk 0:02:02]}  bxa3 {[%clk 0:01:42]} 38. Rxe4+ {[%clk 0:02:02]}  Kf6 {[%clk 0:01:42]} 39. bxa3 {[%clk 0:02:03]}  Rb3+ {[%clk 0:01:41]} 40. Kf2 {[%clk 0:02:04]}  Rxa3 {[%clk 0:01:40]} 41. Nh5+ {[%clk 0:01:57]}  Kf7 {[%clk 0:01:40]} 42. h4 {[%clk 0:01:49]}  Ra1 {[%clk 0:01:34]} 43. Ng3 {[%clk 0:01:47]}  a3 {[%clk 0:01:35]} 44. Re3 {[%clk 0:01:43]}  a2 {[%clk 0:01:31]} 45. Ra3 {[%clk 0:01:42]}  Bb5 {[%clk 0:01:31]} 46. Kg2 {[%clk 0:01:35]}  Bc4 {[%clk 0:01:30]} 47. Ra7+ {[%clk 0:01:33]}  Kf6 {[%clk 0:01:29]} 48. Ne4+ {[%clk 0:01:28]}  Ke5 {[%clk 0:01:29]} 49. Nc3 {[%clk 0:01:29]}  Rc1 {[%clk 0:01:24]} 50. Nxa2 {[%clk 0:01:29]}  Rc2+ {[%clk 0:01:25]} 51. Kg3 {[%clk 0:01:29]}  Rxa2 {[%clk 0:01:26]} 52. Rxh7 {[%clk 0:01:28]}  Bxd5 {[%clk 0:01:25]} 53. Rh5+ {[%clk 0:01:28]}  Ke6 {[%clk 0:01:24]} 54. Kf4 {[%clk 0:01:28]}  Rf2+ {[%clk 0:01:23]} 55. Kg5 {[%clk 0:01:28]}  Rf6 {[%clk 0:01:18]} 56. Rh8 {[%clk 0:01:27]}  Rf7 {[%clk 0:01:15]} 57. h5 {[%clk 0:01:27]}  Be4 {[%clk 0:01:14]} 58. h6 {[%clk 0:01:27]}  d5 {[%clk 0:01:13]} 59. Re8+ {[%clk 0:01:27]}  Kd7 {[%clk 0:01:12]} 60. Re5 {[%clk 0:01:25]}  Re7 {[%clk 0:01:10]} 61. Kf6 {[%clk 0:01:23]}  Rxe5 {[%clk 0:01:08]} 62. Kxe5 {[%clk 0:01:24]}  Kc6 {[%clk 0:01:08]} 63. g5 {[%clk 0:01:23]}  Kc5 {[%clk 0:01:08]} 64. Kf6 {[%clk 0:01:18]}  d4 {[%clk 0:01:08]} 65. g6 {[%clk 0:01:18]}  d3 {[%clk 0:01:05]} 66. h7 {[%clk 0:01:14]}  d2 {[%clk 0:01:05]} 67. h8=Q {[%clk 0:01:15]}  d1=Q {[%clk 0:01:05]} 68. Qb8 {[%clk 0:01:14]}  Qf3+ {[%clk 0:01:02]} 69. Kg7 {[%clk 0:01:14]}  Qc3+ {[%clk 0:01:01]} 70. Kh6 {[%clk 0:01:12]}  Qh3+ {[%clk 0:01:01]} 71. Kg7 {[%clk 0:01:13]}  Qd7+ {[%clk 0:01:00]} 72. Kh6 {[%clk 0:01:12]}  Qd2+ {[%clk 0:00:50]} 73. Kg7 {[%clk 0:01:11]}  Qd4+ {[%clk 0:00:47]} 74. Kh6 {[%clk 0:01:10]}  Qe3+ {[%clk 0:00:45]} 75. Kg7 {[%clk 0:01:11]}  Qd4+ {[%clk 0:00:43]} 76. Kh6 {[%clk 0:01:11]}  Qd6 {[%clk 0:00:42]} 77. Qa7+ {[%clk 0:01:09]}  Kc4 {[%clk 0:00:37]} 78. Qa2+ {[%clk 0:01:09]}  Kd3 {[%clk 0:00:37]} 79. Qb1+ {[%clk 0:01:07]}  Ke3 {[%clk 0:00:37]} 80. Qg1+ {[%clk 0:01:07]}  Kf3 {[%clk 0:00:36]} 81. Qh1+ {[%clk 0:01:06]}  Ke3 {[%clk 0:00:34]} 82. Qg1+ {[%clk 0:01:07]}  Kd3 {[%clk 0:00:34]} 83. Qd1+ {[%clk 0:01:07]}  Ke3 {[%clk 0:00:31]} 84. Qxd6 {[%clk 0:01:08]} 1-0


[Site "https://www.chess.com"]

[Event "Titled Tuesday Blitz October 18 Late 2022"]
[White "Koziorowicz, Michal"]
[Black "Sadhwani, Raunak"]
[WhiteFideId "21809194"]
[BlackFideId "35093487"]
[WhiteElo "2220"]
[BlackElo "2656"]
[Result "0-1"]
[Round "04"]
[TimeControl "180+1"]
[Date "2022.10.18"]
[WhiteClock "0:01:41"]
[BlackClock "0:01:17"]

1. e4 {[%clk 0:03:00]}  Nc6 {[%clk 0:02:59]} 2. Nc3 {[%clk 0:03:00]}  d6 {[%clk 0:02:59]} 3. d4 {[%clk 0:03:00]}  g6 {[%clk 0:02:59]} 4. Be3 {[%clk 0:03:00]}  Bg7 {[%clk 0:02:59]} 5. h4 {[%clk 0:03:01]}  Nf6 {[%clk 0:02:58]} 6. f3 {[%clk 0:02:59]}  h5 {[%clk 0:02:46]} 7. Qd2 {[%clk 0:02:57]}  e5 {[%clk 0:02:44]} 8. Nge2 {[%clk 0:02:54]}  exd4 {[%clk 0:02:31]} 9. Nxd4 {[%clk 0:02:55]}  Ne5 {[%clk 0:02:31]} 10. O-O-O {[%clk 0:02:55]}  a6 {[%clk 0:02:29]} 11. Bg5 {[%clk 0:02:46]}  Qd7 {[%clk 0:02:20]} 12. g3 {[%clk 0:02:32]}  c5 {[%clk 0:02:03]} 13. Bh3 {[%clk 0:02:32]}  Qd8 {[%clk 0:01:52]} 14. Nd5 {[%clk 0:02:10]}  Bxh3 {[%clk 0:01:43]} 15. Rxh3 {[%clk 0:02:07]}  cxd4 {[%clk 0:01:42]} 16. Qf4 {[%clk 0:02:07]}  Nxd5 {[%clk 0:01:34]} 17. exd5 {[%clk 0:01:58]}  Qd7 {[%clk 0:01:28]} 18. Bf6 {[%clk 0:01:45]}  Bh6 {[%clk 0:01:19]} 19. Bg5 {[%clk 0:01:41]}  Bxg5 {[%clk 0:01:18]} 20. Qxg5 {[%clk 0:01:40]}  Qxh3 {[%clk 0:01:18]} 21. f4 {[%clk 0:01:41]}  Qf5 {[%clk 0:01:17]} 0-1


[Site "https://www.chess.com"]

[Event "Titled Tuesday Blitz October 18 Late 2022"]
[White "Leschinsky, Gary"]
[Black "Kowalysko, Roman"]
[WhiteFideId "30951321"]
[BlackFideId "30918510"]
[WhiteElo "1855"]
[BlackElo "2131"]
[Result "1-0"]
[Round "04"]
[TimeControl "180+1"]
[Date "2022.10.19"]
[WhiteClock "0:02:16"]
[BlackClock "0:01:18"]

1. d4 {[%clk 0:03:00]}  Nf6 {[%clk 0:02:44]} 2. c4 {[%clk 0:03:00]}  e5 {[%clk 0:02:42]} 3. dxe5 {[%clk 0:02:58]}  Ng4 {[%clk 0:02:42]} 4. e3 {[%clk 0:02:50]}  Nxe5 {[%clk 0:02:35]} 5. f4 {[%clk 0:02:49]}  Ng6 {[%clk 0:02:26]} 6. Ne2 {[%clk 0:02:49]}  Bb4+ {[%clk 0:02:22]} 7. Nbc3 {[%clk 0:02:47]}  O-O {[%clk 0:02:20]} 8. a3 {[%clk 0:02:47]}  Bxc3+ {[%clk 0:02:19]} 9. Nxc3 {[%clk 0:02:48]}  Re8 {[%clk 0:02:17]} 10. Be2 {[%clk 0:02:46]}  c6 {[%clk 0:02:15]} 11. O-O {[%clk 0:02:45]}  d5 {[%clk 0:02:15]} 12. cxd5 {[%clk 0:02:44]}  cxd5 {[%clk 0:02:15]} 13. Nxd5 {[%clk 0:02:45]}  Be6 {[%clk 0:02:11]} 14. Nc3 {[%clk 0:02:38]}  Bf5 {[%clk 0:02:06]} 15. Qxd8 {[%clk 0:02:35]}  Rxd8 {[%clk 0:02:06]} 16. e4 {[%clk 0:02:36]}  Bd7 {[%clk 0:02:05]} 17. Be3 {[%clk 0:02:35]}  Nc6 {[%clk 0:02:05]} 18. Rad1 {[%clk 0:02:34]}  Be8 {[%clk 0:02:04]} 19. g3 {[%clk 0:02:33]}  h6 {[%clk 0:01:55]} 20. Kf2 {[%clk 0:02:32]}  Nf8 {[%clk 0:01:55]} 21. Nd5 {[%clk 0:02:28]}  Ne6 {[%clk 0:01:54]} 22. b4 {[%clk 0:02:25]}  Rac8 {[%clk 0:01:48]} 23. b5 {[%clk 0:02:23]}  Rxd5 {[%clk 0:01:30]} 24. exd5 {[%clk 0:02:19]}  Ncd8 {[%clk 0:01:30]} 25. dxe6 {[%clk 0:02:19]}  Nxe6 {[%clk 0:01:30]} 26. Rc1 {[%clk 0:02:19]}  Rd8 {[%clk 0:01:28]} 27. Rfd1 {[%clk 0:02:19]}  Ra8 {[%clk 0:01:26]} 28. f5 {[%clk 0:02:17]}  Ng5 {[%clk 0:01:24]} 29. Bxg5 {[%clk 0:02:16]}  hxg5 {[%clk 0:01:24]} 30. Rc7 {[%clk 0:02:17]}  a6 {[%clk 0:01:23]} 31. b6 {[%clk 0:02:17]}  Bc6 {[%clk 0:01:22]} 32. Bf3 {[%clk 0:02:17]}  Bxf3 {[%clk 0:01:21]} 33. Kxf3 {[%clk 0:02:18]}  Rb8 {[%clk 0:01:20]} 34. Rdd7 {[%clk 0:02:17]}  g6 {[%clk 0:01:21]} 35. f6 {[%clk 0:02:17]}  g4+ {[%clk 0:01:20]} 36. Kxg4 {[%clk 0:02:16]}  a5 {[%clk 0:01:20]} 37. Kg5 {[%clk 0:02:15]}  a4 {[%clk 0:01:20]} 38. Kh6 {[%clk 0:02:15]}  g5 {[%clk 0:01:19]} 39. Rxf7 {[%clk 0:02:14]}  g4 {[%clk 0:01:18]} 40. Rg7+ {[%clk 0:02:14]}  Kh8 {[%clk 0:01:18]} 41. Rh7+ {[%clk 0:02:14]}  Kg8 {[%clk 0:01:18]} 42. Rcg7+ {[%clk 0:02:15]}  Kf8 {[%clk 0:01:18]} 43. Rh8# {[%clk 0:02:16]} 1-0


[Site "https://www.chess.com"]

[Event "Titled Tuesday Blitz October 18 Late 2022"]
[White "Li, Hui"]
[Black "Erece, Ece Alkim"]
[WhiteFideId "15400310"]
[BlackFideId "6346006"]
[WhiteElo "1954"]
[BlackElo "1667"]
[Result "0-1"]
[Round "04"]
[TimeControl "180+1"]
[Date "2022.10.19"]
[WhiteClock "0:00:01"]
[BlackClock "0:00:06"]

1. e4 {[%clk 0:03:00]}  c5 {[%clk 0:02:57]} 2. Nf3 {[%clk 0:02:59]}  Nc6 {[%clk 0:02:55]} 3. d4 {[%clk 0:02:59]}  cxd4 {[%clk 0:02:55]} 4. Nxd4 {[%clk 0:03:00]}  d6 {[%clk 0:02:53]} 5. Nc3 {[%clk 0:03:00]}  Nf6 {[%clk 0:02:52]} 6. Be2 {[%clk 0:02:58]}  g6 {[%clk 0:02:46]} 7. Be3 {[%clk 0:02:57]}  Bg7 {[%clk 0:02:44]} 8. O-O {[%clk 0:02:56]}  a6 {[%clk 0:02:38]} 9. Nb3 {[%clk 0:02:54]}  O-O {[%clk 0:02:27]} 10. f4 {[%clk 0:02:52]}  b5 {[%clk 0:02:24]} 11. Bf3 {[%clk 0:02:51]}  Bb7 {[%clk 0:02:24]} 12. Na4 {[%clk 0:02:42]}  bxa4 {[%clk 0:02:14]} 13. Nd4 {[%clk 0:02:41]}  Nd7 {[%clk 0:02:07]} 14. e5 {[%clk 0:02:33]}  Qc7 {[%clk 0:01:42]} 15. e6 {[%clk 0:01:39]}  Nc5 {[%clk 0:01:26]} 16. exf7+ {[%clk 0:01:34]}  Kh8 {[%clk 0:01:17]} 17. c3 {[%clk 0:01:35]}  Nxd4 {[%clk 0:01:12]} 18. cxd4 {[%clk 0:01:31]}  Bxf3 {[%clk 0:01:12]} 19. Qxf3 {[%clk 0:01:28]}  Nd7 {[%clk 0:01:08]} 20. Rac1 {[%clk 0:01:25]}  Qb8 {[%clk 0:00:54]} 21. Qc6 {[%clk 0:01:19]}  Nf6 {[%clk 0:00:45]} 22. Qxa4 {[%clk 0:01:17]}  Ng4 {[%clk 0:00:42]} 23. Bf2 {[%clk 0:01:11]}  Qxb2 {[%clk 0:00:35]} 24. Rc2 {[%clk 0:01:04]}  Qb7 {[%clk 0:00:30]} 25. Kh1 {[%clk 0:00:57]}  Qe4 {[%clk 0:00:28]} 26. Bg1 {[%clk 0:00:52]}  Rab8 {[%clk 0:00:21]} 27. h3 {[%clk 0:00:51]}  Nh6 {[%clk 0:00:20]} 28. Rcc1 {[%clk 0:00:45]}  Nf5 {[%clk 0:00:20]} 29. Bh2 {[%clk 0:00:44]}  Ne3 {[%clk 0:00:19]} 30. Rg1 {[%clk 0:00:43]}  Rb1 {[%clk 0:00:19]} 31. Rxb1 {[%clk 0:00:39]}  Bxd4 {[%clk 0:00:18]} 32. Rbe1 {[%clk 0:00:28]}  e5 {[%clk 0:00:16]} 33. fxe5 {[%clk 0:00:27]}  dxe5 {[%clk 0:00:17]} 34. Qxa6 {[%clk 0:00:25]}  Rxf7 {[%clk 0:00:16]} 35. Qe2 {[%clk 0:00:22]}  Qh4 {[%clk 0:00:12]} 36. a4 {[%clk 0:00:18]}  Rf2 {[%clk 0:00:12]} 37. Qa6 {[%clk 0:00:16]}  Rc2 {[%clk 0:00:10]} 38. Qa8+ {[%clk 0:00:12]}  Kg7 {[%clk 0:00:10]} 39. Qf3 {[%clk 0:00:13]}  Nf5 {[%clk 0:00:10]} 40. Qb7+ {[%clk 0:00:11]}  Kh6 {[%clk 0:00:09]} 41. Rgf1 {[%clk 0:00:10]}  Rf2 {[%clk 0:00:07]} 42. Rxf2 {[%clk 0:00:10]}  Qxf2 {[%clk 0:00:07]} 43. Rb1 {[%clk 0:00:09]}  Qe3 {[%clk 0:00:07]} 44. Qf3 {[%clk 0:00:09]}  Qd2 {[%clk 0:00:07]} 45. Rf1 {[%clk 0:00:08]}  Ne3 {[%clk 0:00:07]} 46. Rg1 {[%clk 0:00:06]}  Nf5 {[%clk 0:00:07]} 47. Rf1 {[%clk 0:00:05]}  Qa2 {[%clk 0:00:07]} 48. a5 {[%clk 0:00:03]}  Ne3 {[%clk 0:00:06]} 49. Rg1 {[%clk 0:00:02]}  Nf5 {[%clk 0:00:07]} 50. Qe4 {[%clk 0:00:02]}  Bxg1 {[%clk 0:00:06]} 51. Bxg1 {[%clk 0:00:01]}  Ng3+ {[%clk 0:00:06]} 0-1


[Site "https://www.chess.com"]

[Event "Titled Tuesday Blitz October 18 Late 2022"]
[White "Lima, Endson Dos Santos"]
[Black "Arnold, Ken"]
[WhiteFideId "2133199"]
[BlackFideId "2056836"]
[WhiteElo "1953"]
[BlackElo "2345"]
[Result "1-0"]
[Round "04"]
[TimeControl "180+1"]
[Date "2022.10.19"]
[WhiteClock "0:01:04"]
[BlackClock "0:01:00"]

1. e4 {[%clk 0:03:00]}  c6 {[%clk 0:03:00]} 2. d4 {[%clk 0:03:00]}  d5 {[%clk 0:03:00]} 3. exd5 {[%clk 0:03:01]}  cxd5 {[%clk 0:02:59]} 4. c4 {[%clk 0:03:01]}  Nf6 {[%clk 0:03:00]} 5. cxd5 {[%clk 0:03:02]}  Nxd5 {[%clk 0:03:00]} 6. Nc3 {[%clk 0:03:03]}  Nc6 {[%clk 0:03:00]} 7. Nf3 {[%clk 0:03:02]}  Bg4 {[%clk 0:03:00]} 8. Qb3 {[%clk 0:03:02]}  Bxf3 {[%clk 0:02:59]} 9. gxf3 {[%clk 0:03:03]}  e6 {[%clk 0:02:59]} 10. Qxb7 {[%clk 0:03:01]}  Nxd4 {[%clk 0:02:59]} 11. Bb5+ {[%clk 0:02:53]}  Nxb5 {[%clk 0:02:58]} 12. Qxb5+ {[%clk 0:02:54]}  Qd7 {[%clk 0:02:57]} 13. Nxd5 {[%clk 0:02:44]}  exd5 {[%clk 0:02:57]} 14. Qxd7+ {[%clk 0:02:41]}  Kxd7 {[%clk 0:02:56]} 15. Be3 {[%clk 0:02:36]}  Bb4+ {[%clk 0:02:55]} 16. Ke2 {[%clk 0:02:36]}  Rhc8 {[%clk 0:02:47]} 17. Rac1 {[%clk 0:02:32]}  a6 {[%clk 0:02:45]} 18. Rhd1 {[%clk 0:02:27]}  Ke6 {[%clk 0:02:44]} 19. Kd3 {[%clk 0:02:25]}  Bd6 {[%clk 0:02:40]} 20. f4 {[%clk 0:02:24]}  g6 {[%clk 0:02:36]} 21. Re1 {[%clk 0:02:15]}  Kf5 {[%clk 0:02:06]} 22. Kd4 {[%clk 0:01:49]}  Bxf4 {[%clk 0:01:51]} 23. Kxd5 {[%clk 0:01:36]}  Rd8+ {[%clk 0:01:31]} 24. Kc6 {[%clk 0:01:32]}  Be5 {[%clk 0:01:22]} 25. b3 {[%clk 0:01:16]}  Rab8 {[%clk 0:01:18]} 26. Rc5 {[%clk 0:01:12]}  Rd6+ {[%clk 0:01:12]} 27. Kc7 {[%clk 0:01:08]}  Rd5+ {[%clk 0:01:06]} 28. Kc6 {[%clk 0:01:04]}  Rc8+ {[%clk 0:01:00]} 29. Kxd5 {[%clk 0:01:04]} 1-0


[Site "https://www.chess.com"]